[Event "Early-Titled-Tuesday-Blitz-June-18-2024"]
[Site "Chess.com"]
[Date "2024.06.18"]
[Round "5"]
[White "Gareth-Bale11"]
[Black "Andrei_Skvortsov"]
[Result "1-0"]
[WhiteElo "2946"]
[BlackElo "2784"]
[TimeControl "180+1"]
[EndTime "8:57:52 PDT"]
[Termination "Gareth-Bale11 won by resignation"]

1. e4 {[%clk 0:03:00.9]} 1... d5 {[%clk 0:03:00]} 2. exd5 {[%clk 0:02:58.9]}
2... Qxd5 {[%clk 0:03:00.9]} 3. Nc3 {[%clk 0:02:59.1]} 3... Qe5+ {[%clk
0:03:01.1]} 4. Be2 {[%clk 0:02:57.9]} 4... Bg4 {[%clk 0:03:01.5]} 5. d4 {[%clk
0:02:55.9]} 5... Bxe2 {[%clk 0:03:01.8]} 6. Ngxe2 {[%clk 0:02:56.7]} 6... Qa5
{[%clk 0:03:02]} 7. O-O {[%clk 0:02:55.6]} 7... Nf6 {[%clk 0:03:02.3]} 8. b4
{[%clk 0:02:54.9]} 8... Qxb4 {[%clk 0:03:02.6]} 9. Rb1 {[%clk 0:02:53.9]} 9...
Qc4 {[%clk 0:02:56.5]} 10. Rxb7 {[%clk 0:02:53.1]} 10... e6 {[%clk 0:02:55.6]}
11. Bf4 {[%clk 0:02:37.5]} 11... Na6 {[%clk 0:02:55.5]} 12. Qd2 {[%clk
0:02:31.7]} 12... Bb4 {[%clk 0:02:50.8]} 13. Qd3 {[%clk 0:02:01.9]} 13... Qxd3
{[%clk 0:02:37.1]} 14. cxd3 {[%clk 0:02:02.8]} 14... Kd7 {[%clk 0:02:34.3]} 15.
Rb1 {[%clk 0:01:55.3]} 15... Rhb8 {[%clk 0:02:11.8]} 16. Rxb8 {[%clk 0:01:25.3]}
16... Rxb8 {[%clk 0:02:10.5]} 17. Ne4 {[%clk 0:01:25.1]} 17... Nd5 {[%clk
0:02:04.7]} 18. g4 {[%clk 0:01:10.4]} 18... Rb6 {[%clk 0:02:02]} 19. Rc1 {[%clk
0:01:02.7]} 19... Nxf4 {[%clk 0:01:49.4]} 20. Nxf4 {[%clk 0:01:01.5]} 20... Be7
{[%clk 0:01:38.8]} 21. g5 {[%clk 0:00:44.6]} 21... Rb5 {[%clk 0:01:30.5]} 22. h4
{[%clk 0:00:43.8]} 22... h6 {[%clk 0:01:22.1]} 23. g6 {[%clk 0:00:26.3]} 23...
f5 {[%clk 0:01:17.3]} 24. Ng3 {[%clk 0:00:26.3]} 24... Bxh4 {[%clk 0:01:08.1]}
25. Ngh5 {[%clk 0:00:25.9]} 25... Bg5 {[%clk 0:01:07]} 26. Re1 {[%clk
0:00:24.8]} 26... Rb6 {[%clk 0:00:59.5]} 27. Nh3 {[%clk 0:00:19.9]} 27... e5
{[%clk 0:00:54.4]} 28. dxe5 {[%clk 0:00:19.8]} 28... Bd2 {[%clk 0:00:47.3]} 29.
Rd1 {[%clk 0:00:17.3]} 29... Rxg6+ {[%clk 0:00:47.3]} 30. Kf1 {[%clk 0:00:17.2]}
30... Bc3 {[%clk 0:00:44.2]} 31. d4 {[%clk 0:00:17.2]} 31... Rb6 {[%clk
0:00:43.3]} 32. Nxg7 {[%clk 0:00:15.2]} 32... Nb4 {[%clk 0:00:38.9]} 33. Nf4
{[%clk 0:00:13.4]} 33... Rb8 {[%clk 0:00:29.5]} 34. e6+ {[%clk 0:00:12.5]} 34...
Kd6 {[%clk 0:00:28.7]} 35. Nxf5+ {[%clk 0:00:12.3]} 35... Kc6 {[%clk 0:00:29.3]}
36. d5+ {[%clk 0:00:12.8]} 36... Kc5 {[%clk 0:00:28.6]} 37. e7 {[%clk
0:00:13.3]} 37... Re8 {[%clk 0:00:28.2]} 38. Ne6+ {[%clk 0:00:13.7]} 38... Kc4
{[%clk 0:00:26.1]} 39. Nxc7 {[%clk 0:00:13.6]} 39... Rc8 {[%clk 0:00:22.6]} 40.
Nd6+ {[%clk 0:00:12.5]} 1-0

[Event "Early-Titled-Tuesday-Blitz-June-18-2024"]
[Site "Chess.com"]
[Date "2024.06.18"]
[Round "5"]
[White "LeoLV10"]
[Black "Sprinc1"]
[Result "1-0"]
[WhiteElo "2550"]
[BlackElo "2234"]
[TimeControl "180+1"]
[EndTime "8:57:53 PDT"]
[Termination "LeoLV10 won by resignation"]

1. e4 {[%clk 0:03:00.9]} 1... d5 {[%clk 0:02:58.3]} 2. exd5 {[%clk 0:03:00.8]}
2... Qxd5 {[%clk 0:02:59]} 3. Nc3 {[%clk 0:03:01.4]} 3... Qd6 {[%clk 0:02:59]}
4. d4 {[%clk 0:03:01.8]} 4... Nf6 {[%clk 0:02:57.6]} 5. Nf3 {[%clk 0:03:01.8]}
5... c6 {[%clk 0:02:57.8]} 6. Bc4 {[%clk 0:02:55.5]} 6... Bg4 {[%clk 0:02:55.8]}
7. Be3 {[%clk 0:02:53.9]} 7... Nbd7 {[%clk 0:02:53.3]} 8. h3 {[%clk 0:02:53.2]}
8... Bxf3 {[%clk 0:02:50.4]} 9. Qxf3 {[%clk 0:02:54.1]} 9... e6 {[%clk
0:02:49.9]} 10. O-O {[%clk 0:02:52.6]} 10... Be7 {[%clk 0:02:48.4]} 11. Bb3
{[%clk 0:02:52.9]} 11... O-O {[%clk 0:02:46.7]} 12. Rad1 {[%clk 0:02:48.3]}
12... a5 {[%clk 0:02:43.5]} 13. Bf4 {[%clk 0:02:46.5]} 13... Qb4 {[%clk
0:02:38.4]} 14. a3 {[%clk 0:02:44.4]} 14... Qb6 {[%clk 0:02:36.4]} 15. Na4
{[%clk 0:02:42.5]} 15... Qa6 {[%clk 0:02:25.7]} 16. Nc3 {[%clk 0:02:31.4]} 16...
b5 {[%clk 0:02:21]} 17. Ne2 {[%clk 0:02:28]} 17... a4 {[%clk 0:02:12.7]} 18. Ba2
{[%clk 0:02:28.1]} 18... Nb6 {[%clk 0:02:10]} 19. Ng3 {[%clk 0:02:25.4]} 19...
Nbd5 {[%clk 0:02:07.2]} 20. Bc1 {[%clk 0:02:24.7]} 20... b4 {[%clk 0:02:02.7]}
21. axb4 {[%clk 0:02:22]} 21... Nxb4 {[%clk 0:02:02.2]} 22. Bb1 {[%clk
0:02:22.3]} 22... c5 {[%clk 0:01:57]} 23. c3 {[%clk 0:02:21.8]} 23... Nbd5
{[%clk 0:01:53.5]} 24. dxc5 {[%clk 0:02:14.9]} 24... Bxc5 {[%clk 0:01:53.2]} 25.
Ne4 {[%clk 0:02:14.5]} 25... Be7 {[%clk 0:01:31.6]} 26. Nxf6+ {[%clk 0:02:13.2]}
26... Nxf6 {[%clk 0:01:31]} 27. Bg5 {[%clk 0:02:07.9]} 27... a3 {[%clk
0:01:25.4]} 28. bxa3 {[%clk 0:02:05.4]} 28... Qxa3 {[%clk 0:01:24.2]} 29. Qd3
{[%clk 0:02:00.5]} 29... Rfd8 {[%clk 0:01:16.2]} 30. Qc2 {[%clk 0:01:54]} 30...
h6 {[%clk 0:01:11.4]} 31. Bh4 {[%clk 0:01:42.3]} 31... Rac8 {[%clk 0:01:07.7]}
32. Rxd8+ {[%clk 0:01:35.8]} 32... Rxd8 {[%clk 0:00:55.2]} 33. c4 {[%clk
0:01:34.3]} 33... g6 {[%clk 0:00:43.8]} 34. Bg3 {[%clk 0:01:30.8]} 34... Qc5
{[%clk 0:00:40.5]} 35. Rc1 {[%clk 0:01:23.8]} 35... Nh5 {[%clk 0:00:38.8]} 36.
Bh2 {[%clk 0:01:19.6]} 36... Bg5 {[%clk 0:00:34]} 37. Rf1 {[%clk 0:01:18.7]}
37... Rd2 {[%clk 0:00:30]} 38. Qb3 {[%clk 0:01:04.4]} 38... Bf6 {[%clk
0:00:11.6]} 39. Qb8+ {[%clk 0:00:56.1]} 39... Kh7 {[%clk 0:00:09.8]} 40. Qb7
{[%clk 0:00:52.4]} 40... Qe7 {[%clk 0:00:05.8]} 41. Qf3 {[%clk 0:00:50.7]} 41...
Ng7 {[%clk 0:00:03.2]} 42. c5 {[%clk 0:00:47.5]} 42... Bd4 {[%clk 0:00:02.3]}
43. Bd6 {[%clk 0:00:46.1]} 43... Qa7 {[%clk 0:00:01.5]} 44. Qf4 {[%clk
0:00:41.6]} 44... Nf5 {[%clk 0:00:01.7]} 45. Qxd2 {[%clk 0:00:41.4]} 1-0

[Event "Early-Titled-Tuesday-Blitz-June-18-2024"]
[Site "Chess.com"]
[Date "2024.06.18"]
[Round "5"]
[White "topce"]
[Black "Wizard_97"]
[Result "1-0"]
[WhiteElo "2530"]
[BlackElo "2716"]
[TimeControl "180+1"]
[EndTime "8:57:54 PDT"]
[Termination "topce won by checkmate"]

1. c4 {[%clk 0:03:00.9]} 1... e5 {[%clk 0:02:59.5]} 2. Nc3 {[%clk 0:03:00]} 2...
Nc6 {[%clk 0:02:55.5]} 3. Nf3 {[%clk 0:02:58.7]} 3... Nf6 {[%clk 0:02:51.2]} 4.
e4 {[%clk 0:02:56.9]} 4... Bc5 {[%clk 0:02:36.2]} 5. Nxe5 {[%clk 0:02:55.9]}
5... Nxe5 {[%clk 0:02:24.7]} 6. d4 {[%clk 0:02:53.8]} 6... Bxd4 {[%clk
0:02:25.1]} 7. Qxd4 {[%clk 0:02:53]} 7... Nc6 {[%clk 0:02:26]} 8. Qd2 {[%clk
0:02:52.5]} 8... d6 {[%clk 0:02:26.9]} 9. f3 {[%clk 0:02:52.5]} 9... Be6 {[%clk
0:02:26.2]} 10. b3 {[%clk 0:02:52.6]} 10... a6 {[%clk 0:02:24.2]} 11. Bb2 {[%clk
0:02:53]} 11... Qd7 {[%clk 0:02:21.3]} 12. Be2 {[%clk 0:02:50.2]} 12... Ne7
{[%clk 0:02:14.5]} 13. Nd5 {[%clk 0:02:47.6]} 13... Bxd5 {[%clk 0:02:10.9]} 14.
cxd5 {[%clk 0:02:48.5]} 14... Ng6 {[%clk 0:02:08.9]} 15. O-O {[%clk 0:02:41.6]}
15... O-O {[%clk 0:02:05.4]} 16. Rac1 {[%clk 0:02:36.4]} 16... Rac8 {[%clk
0:02:00.6]} 17. Rfd1 {[%clk 0:02:32.6]} 17... Qe7 {[%clk 0:01:55.2]} 18. Rc2
{[%clk 0:02:23.9]} 18... Rfd8 {[%clk 0:01:44.4]} 19. Rdc1 {[%clk 0:02:21.9]}
19... Ne8 {[%clk 0:01:43.6]} 20. Qa5 {[%clk 0:02:17.2]} 20... Nf4 {[%clk
0:01:37.4]} 21. Bf1 {[%clk 0:02:16.9]} 21... Qg5 {[%clk 0:01:33.6]} 22. Qd2
{[%clk 0:02:00.7]} 22... Nh3+ {[%clk 0:01:22.5]} 23. Kh1 {[%clk 0:01:59.5]}
23... Qxd2 {[%clk 0:01:22.4]} 24. Rxd2 {[%clk 0:02:00]} 24... Nf4 {[%clk
0:01:22.8]} 25. g3 {[%clk 0:01:56.5]} 25... Ng6 {[%clk 0:01:22.5]} 26. Bh3
{[%clk 0:01:57]} 26... Rb8 {[%clk 0:01:20.4]} 27. f4 {[%clk 0:01:53.4]} 27...
Ne7 {[%clk 0:01:17.5]} 28. Ba3 {[%clk 0:01:44.1]} 28... c6 {[%clk 0:01:13.8]}
29. dxc6 {[%clk 0:01:43.3]} 29... bxc6 {[%clk 0:01:10.8]} 30. Rcd1 {[%clk
0:01:41]} 30... Nc8 {[%clk 0:00:34.6]} 31. e5 {[%clk 0:01:32.3]} 31... d5 {[%clk
0:00:32]} 32. Rc2 {[%clk 0:01:22.8]} 32... Rb6 {[%clk 0:00:23.6]} 33. Bc5 {[%clk
0:01:21.6]} 33... Rb5 {[%clk 0:00:23.5]} 34. Bf1 {[%clk 0:01:21.2]} 34... Rb8
{[%clk 0:00:21.4]} 35. Bxa6 {[%clk 0:01:18.9]} 35... Nc7 {[%clk 0:00:21.2]} 36.
Bd3 {[%clk 0:01:17.5]} 36... Ne6 {[%clk 0:00:20.9]} 37. Rdc1 {[%clk 0:01:14.5]}
37... g6 {[%clk 0:00:20]} 38. Be2 {[%clk 0:01:07.8]} 38... Nxc5 {[%clk
0:00:19.2]} 39. Rxc5 {[%clk 0:01:07.2]} 39... Ne7 {[%clk 0:00:19.9]} 40. R1c2
{[%clk 0:01:03.9]} 40... Rb4 {[%clk 0:00:20.4]} 41. Kg1 {[%clk 0:01:03.2]} 41...
Ra8 {[%clk 0:00:19.6]} 42. Kf2 {[%clk 0:00:57.7]} 42... Kg7 {[%clk 0:00:19.4]}
43. Bg4 {[%clk 0:00:56.1]} 43... f6 {[%clk 0:00:19]} 44. exf6+ {[%clk
0:00:55.1]} 44... Kxf6 {[%clk 0:00:19.9]} 45. Bd7 {[%clk 0:00:55.4]} 45... Rb6
{[%clk 0:00:20.4]} 46. Bxc6 {[%clk 0:00:55.2]} 46... Nxc6 {[%clk 0:00:13.6]} 47.
Rxc6+ {[%clk 0:00:56.1]} 47... Rxc6 {[%clk 0:00:14.1]} 48. Rxc6+ {[%clk
0:00:56.3]} 48... Kf5 {[%clk 0:00:14.8]} 49. Kf3 {[%clk 0:00:56.3]} 49... h5
{[%clk 0:00:13.7]} 50. h3 {[%clk 0:00:56.1]} 50... g5 {[%clk 0:00:05.3]} 51. g4+
{[%clk 0:00:56.2]} 51... hxg4+ {[%clk 0:00:04.3]} 52. hxg4# {[%clk 0:00:57.1]}
1-0

[Event "Early-Titled-Tuesday-Blitz-June-18-2024"]
[Site "Chess.com"]
[Date "2024.06.18"]
[Round "5"]
[White "cmunda"]
[Black "micke12a"]
[Result "1-0"]
[WhiteElo "2202"]
[BlackElo "2377"]
[TimeControl "180+1"]
[EndTime "8:57:55 PDT"]
[Termination "cmunda won by resignation"]

1. e4 {[%clk 0:03:00.9]} 1... c5 {[%clk 0:02:58.5]} 2. c3 {[%clk 0:03:00.6]}
2... e6 {[%clk 0:02:56.3]} 3. d4 {[%clk 0:03:00.3]} 3... d5 {[%clk 0:02:56.1]}
4. e5 {[%clk 0:02:58.5]} 4... Nc6 {[%clk 0:02:55.6]} 5. Nf3 {[%clk 0:02:58.5]}
5... Qb6 {[%clk 0:02:55.3]} 6. Bd3 {[%clk 0:02:53.7]} 6... cxd4 {[%clk 0:02:50]}
7. cxd4 {[%clk 0:02:53.7]} 7... Nb4 {[%clk 0:02:49.2]} 8. Be2 {[%clk 0:02:49.3]}
8... a5 {[%clk 0:02:45.7]} 9. O-O {[%clk 0:02:48.9]} 9... Ne7 {[%clk 0:02:43.8]}
10. Nc3 {[%clk 0:02:48.7]} 10... Nf5 {[%clk 0:02:41.7]} 11. g4 {[%clk
0:02:18.4]} 11... Ne7 {[%clk 0:02:38.8]} 12. a3 {[%clk 0:02:14.7]} 12... Nbc6
{[%clk 0:02:36.8]} 13. Na4 {[%clk 0:02:04.9]} 13... Qd8 {[%clk 0:02:34.4]} 14.
Be3 {[%clk 0:02:04]} 14... h5 {[%clk 0:02:33.4]} 15. h3 {[%clk 0:02:00.9]} 15...
hxg4 {[%clk 0:02:31.7]} 16. hxg4 {[%clk 0:02:01.8]} 16... Ng6 {[%clk 0:02:32.3]}
17. Kg2 {[%clk 0:01:59]} 17... Nh4+ {[%clk 0:02:11.8]} 18. Nxh4 {[%clk
0:01:58.8]} 18... Rxh4 {[%clk 0:02:12.4]} 19. Rh1 {[%clk 0:01:58.6]} 19... Rxh1
{[%clk 0:02:09.7]} 20. Qxh1 {[%clk 0:01:58.4]} 20... Ne7 {[%clk 0:02:07.4]} 21.
Rc1 {[%clk 0:01:53]} 21... Bd7 {[%clk 0:02:06.9]} 22. Nc5 {[%clk 0:01:50]} 22...
Bc6 {[%clk 0:02:05.2]} 23. Bg5 {[%clk 0:01:43.4]} 23... Qb6 {[%clk 0:02:01.9]}
24. Rc2 {[%clk 0:01:41.1]} 24... Ng6 {[%clk 0:01:58.1]} 25. Qc1 {[%clk
0:01:25.3]} 25... Be7 {[%clk 0:01:50.9]} 26. Bxe7 {[%clk 0:01:20.2]} 26... Kxe7
{[%clk 0:01:49.2]} 27. Bd3 {[%clk 0:01:18.6]} 27... Nh4+ {[%clk 0:00:54.2]} 28.
Kg3 {[%clk 0:01:18]} 28... Rh8 {[%clk 0:00:52.3]} 29. Qg5+ {[%clk 0:01:15.5]}
29... Kf8 {[%clk 0:00:50.4]} 30. b4 {[%clk 0:00:57.7]} 30... Rh6 {[%clk
0:00:19.8]} 31. b5 {[%clk 0:00:56.5]} 31... Be8 {[%clk 0:00:18.8]} 32. a4 {[%clk
0:00:49.7]} 32... Ng6 {[%clk 0:00:14.5]} 33. f4 {[%clk 0:00:43.9]} 33... Ne7
{[%clk 0:00:12.9]} 34. f5 {[%clk 0:00:37.5]} 34... exf5 {[%clk 0:00:10.7]} 35.
gxf5 {[%clk 0:00:37.4]} 35... Qd8 {[%clk 0:00:11.3]} 36. f6 {[%clk 0:00:30.1]}
36... Ng6 {[%clk 0:00:02.8]} 37. fxg7+ {[%clk 0:00:25.6]} 37... Kxg7 {[%clk
0:00:03]} 38. Qxd8 {[%clk 0:00:25.7]} 1-0

[Event "Early-Titled-Tuesday-Blitz-June-18-2024"]
[Site "Chess.com"]
[Date "2024.06.18"]
[Round "5"]
[White "AndresDelgado77"]
[Black "HanSchut"]
[Result "1-0"]
[WhiteElo "2363"]
[BlackElo "2250"]
[TimeControl "180+1"]
[EndTime "8:57:55 PDT"]
[Termination "AndresDelgado77 won by resignation"]

1. e4 {[%clk 0:03:00]} 1... c5 {[%clk 0:02:57.5]} 2. Nf3 {[%clk 0:02:53.5]} 2...
d6 {[%clk 0:02:57.6]} 3. d4 {[%clk 0:02:52.7]} 3... cxd4 {[%clk 0:02:58.5]} 4.
Qxd4 {[%clk 0:02:51.8]} 4... Nc6 {[%clk 0:02:57.7]} 5. Bb5 {[%clk 0:02:50.9]}
5... Bd7 {[%clk 0:02:58.3]} 6. Qd3 {[%clk 0:02:49.5]} 6... Rc8 {[%clk
0:02:50.9]} 7. Nc3 {[%clk 0:02:30]} 7... Nf6 {[%clk 0:02:42.1]} 8. Bg5 {[%clk
0:02:25.1]} 8... Nb4 {[%clk 0:02:39.8]} 9. Bxd7+ {[%clk 0:02:22.3]} 9... Qxd7
{[%clk 0:02:34.8]} 10. Qe2 {[%clk 0:02:12.1]} 10... e6 {[%clk 0:02:00.3]} 11. a3
{[%clk 0:02:03.9]} 11... Nc6 {[%clk 0:01:57.5]} 12. O-O-O {[%clk 0:02:03.8]}
12... h6 {[%clk 0:01:35.2]} 13. Bf4 {[%clk 0:01:58.9]} 13... a6 {[%clk
0:01:21.9]} 14. e5 {[%clk 0:01:28.8]} 14... Nh5 {[%clk 0:01:21.5]} 15. Be3
{[%clk 0:01:28]} 15... g5 {[%clk 0:01:14.4]} 16. g4 {[%clk 0:01:18.9]} 16... Nf4
{[%clk 0:01:13.7]} 17. Bxf4 {[%clk 0:01:19.3]} 17... gxf4 {[%clk 0:01:14.6]} 18.
Ne4 {[%clk 0:01:18.8]} 18... Be7 {[%clk 0:00:59.4]} 19. Nxd6+ {[%clk 0:01:10.1]}
19... Bxd6 {[%clk 0:00:58.9]} 20. Rxd6 {[%clk 0:01:10.4]} 20... Qc7 {[%clk
0:00:58.7]} 21. Qe4 {[%clk 0:01:07.2]} 21... Nxe5 {[%clk 0:00:50]} 22. Rxe6+
{[%clk 0:00:33.1]} 22... fxe6 {[%clk 0:00:43.2]} 23. Nxe5 {[%clk 0:00:33.4]}
23... Rg8 {[%clk 0:00:27.5]} 24. c3 {[%clk 0:00:19.4]} 24... Rg5 {[%clk
0:00:19.6]} 25. Nf3 {[%clk 0:00:19.1]} 25... Qc6 {[%clk 0:00:15.4]} 26. Nxg5
{[%clk 0:00:18.5]} 26... hxg5 {[%clk 0:00:14.3]} 27. Qg6+ {[%clk 0:00:18.7]}
27... Kd7 {[%clk 0:00:14.3]} 28. Rd1+ {[%clk 0:00:17.1]} 28... Kc7 {[%clk
0:00:14.7]} 29. Qxg5 {[%clk 0:00:15.4]} 29... Kb8 {[%clk 0:00:12.8]} 30. Qxf4+
{[%clk 0:00:15]} 30... Ka8 {[%clk 0:00:13.2]} 31. Qd6 {[%clk 0:00:11.5]} 31...
Qf3 {[%clk 0:00:11.3]} 32. g5 {[%clk 0:00:09.1]} 32... Qxf2 {[%clk 0:00:10]} 33.
g6 {[%clk 0:00:08.7]} 33... Qxh2 {[%clk 0:00:09.1]} 34. Qxh2 {[%clk 0:00:08.1]}
1-0

[Event "Early-Titled-Tuesday-Blitz-June-18-2024"]
[Site "Chess.com"]
[Date "2024.06.18"]
[Round "5"]
[White "yonaltimur"]
[Black "ElCoachRene"]
[Result "1-0"]
[WhiteElo "2324"]
[BlackElo "2063"]
[TimeControl "180+1"]
[EndTime "8:57:55 PDT"]
[Termination "yonaltimur won by checkmate"]

1. e4 {[%clk 0:02:29.1]} 1... Nc6 {[%clk 0:02:59]} 2. d4 {[%clk 0:02:29]} 2...
d5 {[%clk 0:02:59]} 3. e5 {[%clk 0:02:27.5]} 3... f6 {[%clk 0:02:59.2]} 4. f4
{[%clk 0:02:16.2]} 4... Nh6 {[%clk 0:02:58.9]} 5. Nf3 {[%clk 0:02:05.7]} 5...
Bg4 {[%clk 0:02:59.3]} 6. Be2 {[%clk 0:02:04.3]} 6... Nf5 {[%clk 0:02:55.8]} 7.
c3 {[%clk 0:02:03.4]} 7... e6 {[%clk 0:02:55.4]} 8. h3 {[%clk 0:02:03.1]} 8...
Bxf3 {[%clk 0:02:54]} 9. Bxf3 {[%clk 0:02:02.7]} 9... Ng3 {[%clk 0:02:54.1]} 10.
Rg1 {[%clk 0:01:59.2]} 10... f5 {[%clk 0:02:53.7]} 11. Be3 {[%clk 0:01:57.6]}
11... Be7 {[%clk 0:02:51.3]} 12. Nd2 {[%clk 0:01:54.1]} 12... O-O {[%clk
0:02:49.7]} 13. Qc2 {[%clk 0:01:53.6]} 13... b5 {[%clk 0:02:45.5]} 14. O-O-O
{[%clk 0:01:51.8]} 14... a5 {[%clk 0:02:43.1]} 15. Kb1 {[%clk 0:01:43.2]} 15...
Ne4 {[%clk 0:00:57.3]} 16. Nxe4 {[%clk 0:01:04]} 16... fxe4 {[%clk 0:00:42.4]}
17. Bg4 {[%clk 0:00:56.7]} 17... Qc8 {[%clk 0:00:41.8]} 18. g3 {[%clk
0:00:37.5]} 18... g6 {[%clk 0:00:40.9]} 19. h4 {[%clk 0:00:23.5]} 19... Nd8
{[%clk 0:00:40.5]} 20. h5 {[%clk 0:00:19.1]} 20... c5 {[%clk 0:00:40.2]} 21.
hxg6 {[%clk 0:00:18.8]} 21... hxg6 {[%clk 0:00:41.1]} 22. Rh1 {[%clk 0:00:18.4]}
22... Kg7 {[%clk 0:00:40.7]} 23. Qh2 {[%clk 0:00:17.6]} 23... Kf7 {[%clk
0:00:35.5]} 24. Qh7+ {[%clk 0:00:15]} 24... Ke8 {[%clk 0:00:35]} 25. Qxg6+
{[%clk 0:00:15.1]} 25... Kd7 {[%clk 0:00:35.2]} 26. Rh7 {[%clk 0:00:15.6]} 26...
Kc6 {[%clk 0:00:21.4]} 27. dxc5 {[%clk 0:00:11.1]} 27... Bxc5 {[%clk 0:00:17.7]}
28. Bxc5 {[%clk 0:00:10.3]} 28... Kxc5 {[%clk 0:00:17.8]} 29. Re7 {[%clk
0:00:07]} 29... Nc6 {[%clk 0:00:12.8]} 30. Rxe6 {[%clk 0:00:06.6]} 30... Qa6
{[%clk 0:00:11.3]} 31. Rd6 {[%clk 0:00:06.2]} 31... b4 {[%clk 0:00:08.3]} 32.
R1xd5+ {[%clk 0:00:06.1]} 32... Kc4 {[%clk 0:00:07.6]} 33. Be2# {[%clk
0:00:06.3]} 1-0

[Event "Early-Titled-Tuesday-Blitz-June-18-2024"]
[Site "Chess.com"]
[Date "2024.06.18"]
[Round "5"]
[White "Chessmatenokk17"]
[Black "Silent-Killer100"]
[Result "1-0"]
[WhiteElo "2797"]
[BlackElo "2574"]
[TimeControl "180+1"]
[EndTime "8:57:56 PDT"]
[Termination "Chessmatenokk17 won by checkmate"]

1. e4 {[%clk 0:03:00.9]} 1... c5 {[%clk 0:02:57.6]} 2. Nf3 {[%clk 0:03:00.6]}
2... e6 {[%clk 0:02:48.8]} 3. c3 {[%clk 0:03:00.6]} 3... d5 {[%clk 0:02:46.8]}
4. e5 {[%clk 0:03:00.8]} 4... Nc6 {[%clk 0:02:43.8]} 5. d4 {[%clk 0:03:00.9]}
5... Bd7 {[%clk 0:02:42.1]} 6. Na3 {[%clk 0:03:00.9]} 6... Qb6 {[%clk
0:02:39.5]} 7. Nc2 {[%clk 0:02:59.2]} 7... Nh6 {[%clk 0:02:38.3]} 8. Bd3 {[%clk
0:02:58.8]} 8... Nf5 {[%clk 0:02:37.6]} 9. O-O {[%clk 0:02:58.2]} 9... Be7
{[%clk 0:02:35]} 10. Bxf5 {[%clk 0:02:49.6]} 10... exf5 {[%clk 0:02:35]} 11.
dxc5 {[%clk 0:02:50]} 11... Qxc5 {[%clk 0:02:34.2]} 12. Be3 {[%clk 0:02:46.6]}
12... Qb5 {[%clk 0:02:25.7]} 13. b4 {[%clk 0:02:35.6]} 13... Be6 {[%clk
0:02:14.6]} 14. Ncd4 {[%clk 0:02:12.1]} 14... Nxd4 {[%clk 0:02:14.4]} 15. Nxd4
{[%clk 0:02:09.6]} 15... Qc4 {[%clk 0:02:13.5]} 16. Nxe6 {[%clk 0:01:54.3]}
16... fxe6 {[%clk 0:02:12.2]} 17. Bd4 {[%clk 0:01:54.8]} 17... O-O {[%clk
0:02:07.1]} 18. Qb3 {[%clk 0:01:51.6]} 18... Rfc8 {[%clk 0:02:05.4]} 19. Rfd1
{[%clk 0:01:50.3]} 19... a6 {[%clk 0:01:55.2]} 20. g3 {[%clk 0:01:44.7]} 20...
Rc7 {[%clk 0:01:51.6]} 21. Rd2 {[%clk 0:01:41.5]} 21... Rac8 {[%clk 0:01:51]}
22. Qd1 {[%clk 0:01:33.7]} 22... Qb5 {[%clk 0:01:42.9]} 23. a4 {[%clk
0:01:32.9]} 23... Qe8 {[%clk 0:01:41.7]} 24. h4 {[%clk 0:01:29.2]} 24... Rc4
{[%clk 0:01:41.3]} 25. h5 {[%clk 0:01:27.7]} 25... R8c7 {[%clk 0:01:35.1]} 26.
Kg2 {[%clk 0:01:24.8]} 26... Bg5 {[%clk 0:01:29.8]} 27. Rd3 {[%clk 0:01:20.5]}
27... Rc8 {[%clk 0:01:28.9]} 28. f4 {[%clk 0:00:59.2]} 28... Be7 {[%clk
0:01:26.1]} 29. g4 {[%clk 0:00:59.5]} 29... fxg4 {[%clk 0:01:18]} 30. Qxg4
{[%clk 0:01:00.4]} 30... Qf7 {[%clk 0:01:16.7]} 31. Rf1 {[%clk 0:00:40.6]} 31...
Rf8 {[%clk 0:00:45.3]} 32. Rg3 {[%clk 0:00:40.6]} 32... Kh8 {[%clk 0:00:45]} 33.
f5 {[%clk 0:00:39.3]} 33... exf5 {[%clk 0:00:38.7]} 34. Rxf5 {[%clk 0:00:39.1]}
34... Qg8 {[%clk 0:00:36.2]} 35. e6 {[%clk 0:00:37.8]} 35... Bf6 {[%clk
0:00:26.2]} 36. e7 {[%clk 0:00:29.4]} 36... Re8 {[%clk 0:00:22.8]} 37. Rxf6
{[%clk 0:00:26.7]} 37... Rxe7 {[%clk 0:00:20.8]} 38. h6 {[%clk 0:00:23.9]} 38...
b5 {[%clk 0:00:07.2]} 39. hxg7+ {[%clk 0:00:23.2]} 39... Rxg7 {[%clk 0:00:07.4]}
40. Qxg7+ {[%clk 0:00:23.9]} 40... Qxg7 {[%clk 0:00:07.6]} 41. Rf8# {[%clk
0:00:24.8]} 1-0

[Event "Early-Titled-Tuesday-Blitz-June-18-2024"]
[Site "Chess.com"]
[Date "2024.06.18"]
[Round "5"]
[White "Zhigalko_Sergei"]
[Black "jguerramzllo"]
[Result "1-0"]
[WhiteElo "2990"]
[BlackElo "2666"]
[TimeControl "180+1"]
[EndTime "8:57:57 PDT"]
[Termination "Zhigalko_Sergei won by checkmate"]

1. e4 {[%clk 0:03:00.9]} 1... e5 {[%clk 0:02:55.6]} 2. Nf3 {[%clk 0:03:00.9]}
2... Nc6 {[%clk 0:02:55.5]} 3. Bc4 {[%clk 0:03:00.8]} 3... Bc5 {[%clk
0:02:54.9]} 4. b4 {[%clk 0:02:59.6]} 4... Bxb4 {[%clk 0:02:54.5]} 5. c3 {[%clk
0:02:59.9]} 5... Be7 {[%clk 0:02:55.2]} 6. d4 {[%clk 0:03:00]} 6... Na5 {[%clk
0:02:55.1]} 7. Bd3 {[%clk 0:03:00.4]} 7... d6 {[%clk 0:02:54.8]} 8. dxe5 {[%clk
0:03:00.9]} 8... dxe5 {[%clk 0:02:55]} 9. Nxe5 {[%clk 0:03:01.8]} 9... Nf6
{[%clk 0:02:54.6]} 10. O-O {[%clk 0:03:02.1]} 10... O-O {[%clk 0:02:53.8]} 11.
Qc2 {[%clk 0:03:02.7]} 11... Bd6 {[%clk 0:02:45.6]} 12. Nf3 {[%clk 0:03:01.8]}
12... Re8 {[%clk 0:02:46.2]} 13. Bg5 {[%clk 0:02:48.4]} 13... h6 {[%clk
0:02:43.6]} 14. Bh4 {[%clk 0:02:48.7]} 14... Bg4 {[%clk 0:02:29]} 15. Nbd2
{[%clk 0:02:48.5]} 15... g5 {[%clk 0:02:06.2]} 16. Bg3 {[%clk 0:02:48.4]} 16...
Bxg3 {[%clk 0:02:06]} 17. hxg3 {[%clk 0:02:49.3]} 17... Qe7 {[%clk 0:02:01.9]}
18. e5 {[%clk 0:02:42.5]} 18... Nd7 {[%clk 0:01:58.8]} 19. Rfe1 {[%clk
0:02:28.1]} 19... Rad8 {[%clk 0:01:54.8]} 20. Nd4 {[%clk 0:02:05.2]} 20... c5
{[%clk 0:01:46.6]} 21. Nf5 {[%clk 0:01:53.2]} 21... Bxf5 {[%clk 0:01:46.2]} 22.
Bxf5 {[%clk 0:01:54.1]} 22... Kg7 {[%clk 0:01:08.8]} 23. f4 {[%clk 0:01:44.4]}
23... gxf4 {[%clk 0:00:34.8]} 24. gxf4 {[%clk 0:01:44.5]} 24... Qh4 {[%clk
0:00:35.4]} 25. Bxd7 {[%clk 0:01:00.9]} 25... Rxd7 {[%clk 0:00:34.4]} 26. Ne4
{[%clk 0:01:01.6]} 26... Red8 {[%clk 0:00:19.9]} 27. Re3 {[%clk 0:00:33.7]}
27... Qxf4 {[%clk 0:00:17.3]} 28. Rg3+ {[%clk 0:00:31.3]} 28... Kf8 {[%clk
0:00:16.6]} 29. Rf1 {[%clk 0:00:26.4]} 29... Qxe5 {[%clk 0:00:14.4]} 30. Rg4
{[%clk 0:00:12]} 30... Nc4 {[%clk 0:00:13.1]} 31. Qf2 {[%clk 0:00:04.9]} 31...
Re7 {[%clk 0:00:06.2]} 32. Nf6 {[%clk 0:00:04.5]} 32... Rd2 {[%clk 0:00:03.6]}
33. Rg8# {[%clk 0:00:04.2]} 1-0